Cogmind - Beta 9 @@@ ROGUE MODE // 2019.10.28 @ 10:17:09 Player: Dhoby_Ghaut Result: Self-destructed Performance ------------- Evolutions (8) 4000 Regions Visited (11) 2200 Robots Destroyed (67) 335 Value Destroyed (2496) 2496 Prototype IDs (4) 80 Alien Tech Used (0) 0 Bonus (205) 205 TOTAL SCORE: 9316 Bonus ------- High Alert Combat Kills 164 Follower Combat Kills 58 Friendly Fire -17 Cogmind --------- Core Integrity 952/1450 Matter 58/300 Energy 34/100 System Corruption 1% Temperature Cool (0) Location -2/Research Parts ------- Power (1) Propulsion (2) Biometal Heavy Treads Utility (18) Advanced Heat Sink High-capacity Storage Unit Advanced Signal Interpreter Experimental Terrain Scan Processor Improved Armor Integrity Analyzer Quantum Capacitor Hacking Suite Hacking Suite Advanced Hacking Suite Weapon (2) Inventory (12) Particle Reactor Armored Huge Wheel Centrium Wheel Experimental Sensor Array Advanced Terrain Scanner Advanced ECM Suite Chainsword Peak State ------------ Power Particle Reactor Propulsion Advanced Heavy Siege Treads Utility Advanced Heat Sink Advanced Heat Sink High-capacity Storage Unit Experimental Sensor Array Advanced Signal Interpreter Advanced Terrain Scanner Experimental Terrain Scan Processor Improved Armor Integrity Analyzer Quantum Capacitor Improved Transmission Jammer Improved Utility Shielding Layered Heavy Armor Plating Hacking Suite Hacking Suite Advanced Hacking Suite System Shield Weapon Long-range Phase Cannon Micro-nuke Launcher Inventory Particle Reactor Biometal Heavy Treads Armored Huge Wheel Centrium Wheel Advanced ECM Suite Hardened Medium Armor Plating Plasma Cannon Chainsword [Rating: 129] Favorites ----------- Power Improved Deuterium Engine Engine Improved Deuterium Engine Reactor Particle Reactor Propulsion Wheel Treads Advanced Heavy Siege Treads Wheel Wheel Utility Hacking Suite Device Improved Heat Sink Storage High-capacity Storage Unit Processor Experimental Terrain Scan Processor Hackware Hacking Suite Protection Hardened Medium Armor Plating Weapon Chainsword Energy Gun Lightning Gun Energy Cannon Long-range Phase Cannon Ballistic Gun Assault Rifle Launcher Micro-nuke Launcher Special Weapon Enhanced Flamer Impact Weapon Hammer Slashing Weapon Chainsword Build | -11 -10 -10 -9 -9 -8 -7 -6 -5 -4 -3 -2 ------- Run | Scr Mat Min Mat Min Mat Fac Fac Fac Fac Res Res Slots Evolved 16 | . . . 2 . 2 2 2 2 2 2 2 Power . | . . . . . . . . . . . . Propulsion . | . . . . . . . . . . . . Utility 16 | . . . 2 . 2 2 2 2 2 2 2 Weapon . | . . . . . . . . . . . . Parts Attached 104 | 6 5 3 8 11 14 7 9 10 7 4 20 Power 8 | 1 1 1 2 . . 1 . . . 1 1 Engine 6 | 1 1 1 2 . . 1 . . . . . Core . | . . . . . . . . . . . . Reactor 2 | . . . . . . . . . . 1 1 Propulsion 12 | 2 . 1 1 1 1 1 1 . . . 4 Treads 3 | . . . . . . . . . . . 3 Leg . | . . . . . . . . . . . . Wheel 9 | 2 . 1 1 1 1 1 1 . . . 1 Hover . | . . . . . . . . . . . . Flight . | . . . . . . . . . . . . Utility 55 | 1 4 . 3 3 9 2 7 6 6 3 11 Device 27 | . 1 . . 3 6 1 3 3 3 2 5 Storage 4 | 1 3 . . . . . . . . . . Processor 6 | . . . . . 2 . 1 1 1 . 1 Hackware 6 | . . . 2 . . 1 2 . . 1 . Protection 12 | . . . 1 . 1 . 1 2 2 . 5 Artifact . | . . . . . . . . . . . . Weapon 29 | 2 . 1 2 7 4 3 1 4 1 . 4 Energy Gun 11 | 1 . 1 2 4 2 1 . . . . . Energy Cannon 5 | . . . . . . 1 . 2 1 . 1 Ballistic Gun 1 | 1 . . . . . . . . . . . Ballistic Cannon . | . . . . . . . . . . . . Launcher 4 | . . . . 2 . . . . . . 2 Special Weapon 1 | . . . . 1 . . . . . . . Impact Weapon 1 | . . . . . 1 . . . . . . Slashing Weapon 6 | . . . . . 1 1 1 2 . . 1 Piercing Weapon . | . . . . . . . . . . . . Special Melee Weapon . | . . . . . . . . . . . . Unidentified Prototypes 4 | . . . 1 1 . . . 1 1 . . Parts Lost 21 | . . 3 2 3 . 1 . . . . 12 Power 3 | . . 1 1 . . . . . . . 1 Propulsion 2 | . . 1 . . . . . . . . 1 Utility 8 | . . . . 1 . . . . . . 7 Weapon 8 | . . 1 1 2 . 1 . . . . 3 Highest Loss Streak 6 | . . 1 2 2 . 1 . . . . 6 Average Slot Usage (%) 94 | . 95 97 99 98 97 98 99 93 88 89 85 Engine 6 | . 14 14 11 11 9 7 6 5 5 . . Wheel 12 | . 28 26 22 22 18 14 12 5 5 4 1 Device 18 | . 4 . . 13 20 22 19 23 20 22 24 Storage 8 | . 19 28 13 11 9 7 6 5 5 4 4 Processor 5 | . . . . . 4 7 7 5 5 9 11 Hackware 16 | . . . 22 11 9 14 24 23 21 19 16 Protection 8 | . . . 8 7 9 7 6 9 15 14 11 Energy Gun 5 | . 14 12 15 21 11 6 . . . . . Energy Cannon 2 | . . . . . . 1 6 7 5 4 3 Ballistic Gun 1 | . 14 14 5 . . . . . . . . Slashing Weapon 3 | . . . . . 4 5 5 3 5 4 3 Naked Turns . | . . . . . . . . . . . . Heaviest Build 104 | 10 48 48 51 52 61 64 70 77 82 89 104 Greatest Support 80 | 26 26 32 32 26 22 22 28 28 28 28 80 Greatest Overweight (x) 3 | . 1 2 1 2 2 2 3 2 2 3 3 Average Overweight (x) 1 | . . 1 1 1 2 2 2 2 2 2 2 Largest Inventory Capacity 16 | 6 16 16 16 12 12 12 12 12 12 12 12 Average Capacity 12 | 5 8 16 12 12 12 12 12 12 12 12 12 Most Carried 14 | 4 7 10 14 12 12 12 12 12 12 12 12 Average Carried 11 | 2 5 8 12 11 11 11 11 11 11 11 11 Final Capacity 12 | . . . . . . . . . . . 12 Final Carried 8 | . . . . . . . . . . . 8 Class Distribution -------------------- 54% | Hacker-Assassin 21% | Mutant 12% | Hacker-Mutant 7% | Hacker-Skirmisher 4% | Scavenger-Mutant Dominant Class ---------------- Mutant | -10/Materials Mutant | -10/Mines Hacker-Mutant | -9/Materials Scavenger-Mutant | -9/Mines Mutant | -8/Materials Hacker-Assassin | -7/Factory Hacker-Assassin | -6/Factory Hacker-Assassin | -5/Factory Hacker-Assassin | -4/Factory Hacker-Assassin | -3/Research Hacker-Assassin | -2/Research Resources | -11 -10 -10 -9 -9 -8 -7 -6 -5 -4 -3 -2 ----------- Run | Scr Mat Min Mat Min Mat Fac Fac Fac Fac Res Res Matter Collected 1282 | 260 34 109 105 127 18 95 45 84 141 13 251 Remotely . | . . . . . . . . . . . . Salvage Created 2598 | . 34 200 237 334 18 95 45 54 176 13 1392 Parts 128 | . 3 11 17 19 4 4 4 . 8 1 57 Haulers Intercepted 2 | . . . 2 . . . . . . . . Recyclers Shooed 4 | . . . . . . . . . 1 . 3 Parts Field Recycled . | . . . . . . . . . . . . Retrieved Matter . | . . . . . . . . . . . . Parts Self-Destructed . | . . . . . . . . . . . . Prevented . | . . . . . . . . . . . . Kills | -11 -10 -10 -9 -9 -8 -7 -6 -5 -4 -3 -2 ------- Run | Scr Mat Min Mat Min Mat Fac Fac Fac Fac Res Res Combat Hostiles Destroyed 45 | . 1 7 1 12 . 1 1 1 . . 21 Guns 17 | . 1 7 1 7 . 1 . . . . . Cannons 14 | . . . . . . . 1 1 . . 12 AOE 14 | . . . . 5 . . . . . . 9 Classes Destroyed 13 | . 1 2 4 . 1 2 1 . . . 2 Worker 5 | . . . 1 2 . . . . . 1 1 Builder 4 | . . . . . . . . . . . 4 Tunneler 1 | . . . . . 1 . . . . . . Hauler 2 | . . . 2 . . . . . . . . Recycler 4 | . . 1 . . . . . . 1 . 2 Mechanic 1 | . . . . . . 1 . . . . . Watcher 5 | . . . 2 . . . . . 1 . 2 Swarmer 16 | . . 7 . 6 . . . . . . 3 Grunt 13 | . 1 . . 6 . . . . . . 6 Brawler 1 | . . . . . . . . . . . 1 Sentry 3 | . . . 1 . . . . . . . 2 Hunter 7 | . . . . . . 1 . . . . 6 Programmer 5 | . . . . . . . 1 1 . . 3 Best Kill Streak 12 | . 1 3 2 4 1 1 1 1 2 1 12 Combat Bots Only 7 | . 1 3 1 4 . 1 1 1 . . 7 Max Kills in Single Turn 4 | . 1 1 2 3 1 1 1 1 1 1 4 Gunslinging . | . . . . . . . . . . . . Exploded 3 | . . . . 3 . . . . . . 2 Melee . | . . . . . . . . . . . . Uniques/NPCs Destroyed . | . . . . . . . . . . . . Combat | -11 -10 -10 -9 -9 -8 -7 -6 -5 -4 -3 -2 -------- Run | Scr Mat Min Mat Min Mat Fac Fac Fac Fac Res Res Damage Taken 5773 | . 81 392 74 463 . 198 30 138 . . 4397 Core 698 | . 11 56 14 97 . 22 . . . . 498 Absorbed by Shields . | . . . . . . . . . . . . Reduced by Siege Mode 238 | . . . . . . . . . . . 238 Core Remaining (%) 93 | 100 . 73 . 72 100 96 100 100 100 100 . Volleys Fired 178 | . 4 22 12 27 . 3 1 7 16 6 80 Largest 2 | . 2 2 2 2 . 2 1 2 1 1 2 Hottest 160 | . 60 60 120 125 . 120 65 160 105 105 154 Shots Fired 233 | . 8 39 23 37 . 6 1 14 16 6 83 Gun 106 | . 8 39 23 33 . 3 . . . . . Cannon 109 | . . . . . . 3 1 14 16 6 69 Launcher 16 | . . . . 2 . . . . . . 14 Special 2 | . . . . 2 . . . . . . . Kinetic 32 | . 4 22 6 . . . . . . . . Thermal 142 | . 4 . 6 23 . 3 1 14 16 6 69 Explosive 16 | . . . . 2 . . . . . . 14 Electromagnetic 43 | . . 17 11 12 . 3 . . . . . Robot Hit Streak 19 | . 3 4 7 5 . 6 4 6 4 . 19 Robot Miss Streak 4 | . 1 3 2 4 . 1 . 2 2 . 2 Penetration Max . | . . . . . . . . . . . . Secondary Targets 1 | . . 1 . . . . . . . . . Max Gunslinging Chain 1 | . . 1 . . . . . . . . . Capacitor 88 | . . . . . . . . . 16 6 66 Shots Hit Robots 159 | . 5 20 15 23 1 5 2 10 6 2 70 Core Hits 130 | . 2 8 9 19 1 3 1 2 4 1 80 Critical Hits 2 | . . . . . . 1 . . . . 1 Critical Kills 1 | . . . . . . 1 . . . . . Critical Parts Destroyed 1 | . . . . . . . . . . . 1 Melee Attacks 65 | . . . . . 10 7 16 11 4 2 15 Impact 5 | . . . . . 5 . . . . . . Slashing 60 | . . . . . 5 7 16 11 4 2 15 Piercing . | . . . . . . . . . . . . Sneak Attacks 4 | . . . . . 1 1 . 1 . 1 . Combat Hostiles . | . . . . . . . . . . . . Follow-up Attacks . | . . . . . . . . . . . . Damage Inflicted 8976 | . 38 244 251 600 99 188 70 362 221 147 6756 Guns 917 | . 38 244 251 321 . 63 . . . . . Cannons 2810 | . . . . . . 26 32 220 221 . 2311 Explosions 4606 | . . . . 267 . . . . . . 4339 Melee 631 | . . . . . 99 99 38 142 . 147 106 Ramming . | . . . . . . . . . . . . Kinetic 183 | . 27 117 39 . . . . . . . . Thermal 3143 | . 11 . 86 236 . 26 32 220 221 . 2311 Explosive 4564 | . . . . 225 . . . . . . 4339 Electromagnetic 455 | . . 127 126 139 . 63 . . . . . Impact . | . . . . . . . . . . . . Slashing 631 | . . . . . 99 99 38 142 . 147 106 Piercing . | . . . . . . . . . . . . Highest Corruption 1 | . . . . . . . 1 1 . . 1 Average Corruption 1 | . . . . . . . 1 1 . . 1 Corruption Purged . | . . . . . . . . . . . . Effects 4 | . . . . . . . . 3 . . 1 Message Errors 2 | . . . . . . . . 2 . . . Data Loss (minor) 1 | . . . . . . . . . . . 1 Targeting Errors 1 | . . . . . . . . 1 . . . Overload Shots . | . . . . . . . . . . . . Overflow Damage 335 | . . . . . . . . 72 8 . 255 Projectiles 111 | . . . . . . . . . 8 . 103 Explosions 152 | . . . . . . . . . . . 152 Melee 72 | . . . . . . . . 72 . . . Knockbacks . | . . . . . . . . . . . . Impact . | . . . . . . . . . . . . Kinetic . | . . . . . . . . . . . . Secondary . | . . . . . . . . . . . . Self-Inflicted Damage 157 | . . . . 29 . . . . . . 128 Shots 5 | . . . . 2 . . . . . . 3 Rammed . | . . . . . . . . . . . . Targets Rammed . | . . . . . . . . . . . . Kicked . | . . . . . . . . . . . . Crushed . | . . . . . . . . . . . . Highest Temperature 482 | . 18 . 246 54 . 36 . 288 402 132 482 Average Temperature 113 | . 13 . 100 12 . 20 . 134 164 56 160 Received Heat Transfer 672 | . 45 . 27 159 . . . . . . 441 Effects 3 | . . . . . . . . . . . 3 Shutdowns 1 | . . . . . . . . . . . 1 Energy Bleed 1 | . . . . . . . . . . . 1 Matter Decay 1 | . . . . . . . . . . . 1 Siege Activations 5 | . . . . . . . . . . . 5 Total Turns 84 | . . . . . . . . . . . 84 Longest Duration 26 | . . . . . . . . . . . 26 Robots Corrupted . | . . . . . . . . . . . . Combat Hostiles . | . . . . . . . . . . . . Parts Fried 2 | . . 1 . 1 . . . . . . . Impact Corruptions . | . . . . . . . . . . . . Robots Melted . | . . . . . . . . . . . . Combat Hostiles . | . . . . . . . . . . . . Parts Melted 11 | . . . . . . . . 2 1 . 8 Heat Transferred 3452 | . 25 . 148 413 . 37 37 350 222 . 2220 Parts Sabotaged . | . . . . . . . . . . . . Parts Stolen . | . . . . . . . . . . . . Parts Stripped . | . . . . . . . . . . . . Power Chain Reactions 2 | . . . . 2 . . . . . . . Missiles Intercepted . | . . . . . . . . . . . . Alert | -11 -10 -10 -9 -9 -8 -7 -6 -5 -4 -3 -2 ------- Run | Scr Mat Min Mat Min Mat Fac Fac Fac Fac Res Res Peak Influence 685 | . 75 183 180 295 93 92 115 34 71 40 685 Average Influence 64 | . 41 89 130 154 56 20 50 23 18 14 156 Maximum Alert Level 2 | . . . . 1 . . . . . . 2 Low Security (%) 96 | . . . . . . . . . . . . Level 1 1 | . . . . . . . . . . . . Level 2 1 | . . . . . . . . . . . . Level 3 . | . . . . . . . . . . . . Level 4 . | . . . . . . . . . . . . Level 5 . | . . . . . . . . . . . . High Security . | . . . . . . . . . . . . Max Security . | . . . . . . . . . . . . Squads Dispatched 13 | . . . . . 2 4 1 1 1 1 3 Investigation 3 | . . . . . . 2 . . 1 . . Extermination 5 | . . . . . . 1 1 1 . 1 1 Reinforcement 5 | . . . . . 2 1 . . . . 2 Assault . | . . . . . . . . . . . . Garrison . | . . . . . . . . . . . . Intercept . | . . . . . . . . . . . . Construction Impeded 1 | . . . . . . . . . . . 1 Haulers Reinforced 1 | . . . . . . . . . . . 1 Stealth | -11 -10 -10 -9 -9 -8 -7 -6 -5 -4 -3 -2 --------- Run | Scr Mat Min Mat Min Mat Fac Fac Fac Fac Res Res Distress Signals 3 | . . . . . 1 . 1 . . . 1 Communications Jammed 92 | . . . . . . . . . . . 92 Distress Signals 91 | . . . . . . . . . . . 91 Times Spotted 103 | . 8 13 5 15 5 2 6 2 1 4 42 Peak Tracking Total 11 | . 4 6 2 9 6 1 2 1 1 1 11 Tactical Retreats 10 | . 2 2 . 3 . . 1 . . . 2 Traps | -11 -10 -10 -9 -9 -8 -7 -6 -5 -4 -3 -2 ------- Run | Scr Mat Min Mat Min Mat Fac Fac Fac Fac Res Res Traps Triggered 4 | . . . . . . 1 1 . 2 . . Indirectly . | . . . . . . . . . . . . Trap Hack Attempts . | . . . . . . . . . . . . Triggered . | . . . . . . . . . . . . Disarmed . | . . . . . . . . . . . . Reprogrammed . | . . . . . . . . . . . . Reused . | . . . . . . . . . . . . Traps Extracted . | . . . . . . . . . . . . Installed . | . . . . . . . . . . . . Triggered . | . . . . . . . . . . . . Machines | -11 -10 -10 -9 -9 -8 -7 -6 -5 -4 -3 -2 ---------- Run | Scr Mat Min Mat Min Mat Fac Fac Fac Fac Res Res Machines Disabled 7 | . . . . 3 . 1 . . 1 . 2 Max in Single Turn 3 | . . . . 3 . 1 . . 1 . 1 Garrison Access 6 | . . . . . . 1 2 1 1 1 . Machines Sabotaged . | . . . . . . . . . . . . Garrisons Compromised . | . . . . . . . . . . . . Overloaded Fab Kills . | . . . . . . . . . . . . Fab Network Shutdowns . | . . . . . . . . . . . . Hacking | -11 -10 -10 -9 -9 -8 -7 -6 -5 -4 -3 -2 --------- Run | Scr Mat Min Mat Min Mat Fac Fac Fac Fac Res Res Machines Accessed 52 | . 6 . 2 . 7 8 11 5 5 5 3 Terminals 36 | . 6 . 2 . 5 5 6 3 4 3 2 Fabricators 3 | . . . . . . 1 1 . . 1 . Repair Stations 2 | . . . . . 1 1 . . . . . Recycling Units 2 | . . . . . . . 1 1 . . . Scanalyzers 2 | . . . . . 1 . 1 . . . . Garrison Access 7 | . . . . . . 1 2 1 1 1 1 Total Hacks 130 | . 11 . 6 . 23 23 26 12 9 15 5 Successful 75 | . 5 . 3 . 17 17 16 6 2 8 1 Failed 54 | . 6 . 3 . 6 5 10 6 7 7 4 Catastrophic 5 | . 1 . . . 1 1 . . 2 . . Database Lockouts 1 | . . . . . . 1 . . . . . Manual 59 | . 9 . 6 . 14 11 5 6 2 6 . Terminals 89 | . 11 . 6 . 15 16 13 8 6 11 3 Fabricators 6 | . . . . . . 1 3 . . 2 . Repair Stations 7 | . . . . . 2 5 . . . . . Recycling Units 4 | . . . . . . . 1 3 . . . Scanalyzers 12 | . . . . . 6 . 6 . . . . Garrison Access 12 | . . . . . . 1 3 1 3 2 2 Terminal Hacks 26 | . 3 . 2 . 2 6 4 2 1 5 1 Record 4 | . . . . . . . 2 1 1 . . Part Schematic 3 | . . . . . . 1 1 . . 1 . Robot Schematic 1 | . . . . . . 1 . . . . . Robot Analysis 1 | . 1 . . . . . . . . . . Level Access Points 2 | . . . . . . 1 . . . 1 . Branch Access Points 2 | . 1 . . . . . 1 . . . . Terminal Index 3 | . . . . . . 1 . 1 . 1 . Alert Level 1 | . . . . . . . . . . . 1 Unreport Threat 1 | . . . . . . . . . . 1 . Locate Traps 1 | . . . . . . 1 . . . . . Security Status 1 | . . . 1 . . . . . . . . Surveillance Status 1 | . . . 1 . . . . . . . . Recall Extermination 2 | . . . . . . 1 . . . 1 . Recall Reinforcements 1 | . . . . . 1 . . . . . . Registered Components 2 | . 1 . . . 1 . . . . . . Fabricator Hacks 2 | . . . . . . 1 1 . . . . Load Schematic 1 | . . . . . . . 1 . . . . Build 1 | . . . . . . 1 . . . . . Repair Station Hacks 7 | . . . . . 2 5 . . . . . Scan Component 4 | . . . . . 1 3 . . . . . Repair 3 | . . . . . 1 2 . . . . . Recycling Unit Hacks 3 | . . . . . . . 1 2 . . . Process 1 | . . . . . . . . 1 . . . Retrieve Matter 2 | . . . . . . . 1 1 . . . Scanalyzer 12 | . . . . . 6 . 6 . . . . Insert Component 6 | . . . . . 3 . 3 . . . . Analyze 6 | . . . . . 3 . 3 . . . . Garrison Access Hacks 6 | . . . . . . 1 2 1 1 1 . Seal Access 6 | . . . . . . 1 2 1 1 1 . Unauthorized Hacks 44 | . 7 . 3 . 15 8 4 3 . 4 . Terminals 19 | . 2 . 1 . 7 4 2 1 . 2 . Track 3 | . . . . . 2 1 . . . . . Assimilate 2 | . 1 . . . . . . . . 1 . Botnet 14 | . 1 . 1 . 5 3 2 1 . 1 . Fabricators . | . . . . . . . . . . . . Repair Stations . | . . . . . . . . . . . . Recycling Units . | . . . . . . . . . . . . Scanalyzers . | . . . . . . . . . . . . Garrison Access . | . . . . . . . . . . . . Data Cores Recovered . | . . . . . . . . . . . . Used . | . . . . . . . . . . . . Hacking Detections 49 | . 6 . 2 . 7 7 10 4 5 5 3 Full Trace Events 2 | . . . . . 1 1 . . . . . Feedback Events . | . . . . . . . . . . . . Feedback Blocked . | . . . . . . . . . . . . Robot Schematics Acquired 1 | . . . . . . 1 . . . . . Robots Built . | . . . . . . . . . . . . Matter . | . . . . . . . . . . . . Time . | . . . . . . . . . . . . Total Robot Build Rating . | . . . . . . . . . . . . Part Schematics Acquired 9 | . . . . . 3 1 4 . . 1 . Parts Built 2 | . . . . . . 2 . . . . . Matter 168 | . . . . . . 168 . . . . . Time 42 | . . . . . . 42 . . . . . Total Part Build Rating 8 | . . . . . . 8 . . . . . Parts Repaired 3 | . . . . . 1 2 . . . . . Time 212 | . . . . . 80 132 . . . . . Parts Recycled . | . . . . . . . . . . . . Recycled Matter 8 | . . . . . . . . 8 . . . Retrieved Matter 8 | . . . . . . . . 8 . . . Retrieved Components . | . . . . . . . . . . . . Parts Scanalyzed 6 | . . . . . 3 . 3 . . . . Part Schematics Acquired 6 | . . . . . 3 . 3 . . . . Parts Damaged 1 | . . . . . 1 . . . . . . Bothacking | -11 -10 -10 -9 -9 -8 -7 -6 -5 -4 -3 -2 ------------ Run | Scr Mat Min Mat Min Mat Fac Fac Fac Fac Res Res Used RIF Installer . | . . . . . . . . . . . . Robots Hacked . | . . . . . . . . . . . . Non-combat . | . . . . . . . . . . . . Combat . | . . . . . . . . . . . . Robot Hacks Applied . | . . . . . . . . . . . . Relay Couplers Released . | . . . . . . . . . . . . Robots Rewired . | . . . . . . . . . . . . Allies Hacked . | . . . . . . . . . . . . Hacks Repelled . | . . . . . . . . . . . . Allies | -11 -10 -10 -9 -9 -8 -7 -6 -5 -4 -3 -2 -------- Run | Scr Mat Min Mat Min Mat Fac Fac Fac Fac Res Res Total Allies 4 | . 1 2 . . . . . . . 1 . Largest Group 2 | . 1 2 2 . . . . . . 1 . Highest-Rated Group 46 | . 10 46 46 . . . . . . 26 . Highest-Rated Ally 31 | . 10 31 31 . . . . . . 26 . Total Orders 3 | . . . . . . . . 3 . . . GOTO 1 | . . . . . . . . 1 . . . EXPLORE 2 | . . . . . . . . 2 . . . Ally Attacks 13 | . . 4 9 . . . . . . . . Total Damage 165 | . . 42 123 . . . . . . . . Kills 2 | . . . 2 . . . . . . . . Allies Corrupted 1 | . . . . . . . . 1 . . . Allies Melted . | . . . . . . . . . . . . Intel | -11 -10 -10 -9 -9 -8 -7 -6 -5 -4 -3 -2 ------- Run | Scr Mat Min Mat Min Mat Fac Fac Fac Fac Res Res Robot Analysis Total 1 | . 1 . . . . . . . . . . Derelict Logs Recovered . | . . . . . . . . . . . . Drone Launches 2 | . . . . . . . . 2 . . . Drone Recoveries . | . . . . . . . . . . . . Exploration | -11 -10 -10 -9 -9 -8 -7 -6 -5 -4 -3 -2 ------------- Run | Scr Mat Min Mat Min Mat Fac Fac Fac Fac Res Res Turns Passed 6674 | 53 296 372 313 495 535 1107 803 594 519 668 919 Spaces Moved 4207 | 45 274 218 221 382 318 723 604 310 355 387 370 Core 2 | 2 . . . . . . . . . . . Treads 166 | . . . . . . . . . . . 166 Legs . | . . . . . . . . . . . . Wheels 4039 | 43 274 218 221 382 318 723 604 310 355 387 204 Hover . | . . . . . . . . . . . . Flight . | . . . . . . . . . . . . Fastest Speed 50 | 50 90 100 100 95 105 105 105 120 120 120 130 Average Speed 112 | 89 90 108 105 104 105 105 105 120 120 129 153 Slowest Speed 190 | 100 100 120 110 105 105 105 120 120 120 130 190 Overloaded Moves . | . . . . . . . . . . . . Propulsion Burnouts . | . . . . . . . . . . . . Robots Hopped . | . . . . . . . . . . . . Cave-ins Triggered . | . . . . . . . . . . . . Exploration Rate (%) 25 | 3 47 51 21 67 36 16 15 14 11 12 18 Regions Visited 11 Branch Regions 2 Pre-discovered Areas 1 | . . 1 . . . . . . . . . Known Exits Taken 4 | . 1 . . . . 1 . . 1 1 . Unknown Exits Taken 7 | 1 . 1 1 1 1 . 1 1 . . . Scrap Searched 1 | . . . . 1 . . . . . . . Spaces Dug 82 | . . . . . 5 6 15 9 11 6 30 Terrain Destroyed 214 | . . . . 32 5 6 15 9 13 6 128 Melee 49 | . . . . . 5 6 15 9 4 . 10 Projectile 23 | . . . . . . . . . 9 6 8 AOE 142 | . . . . 32 . . . . . . 110 Actions | -11 -10 -10 -9 -9 -8 -7 -6 -5 -4 -3 -2 --------- Run | Scr Mat Min Mat Min Mat Fac Fac Fac Fac Res Res Total 5880 | 54 310 313 283 439 502 1056 744 498 442 553 686 Wait 1207 | . 26 66 21 11 149 302 95 158 54 151 174 Move 4196 | 44 273 217 220 381 317 722 603 309 354 386 370 Hop . | . . . . . . . . . . . . Pick Up 51 | 4 1 5 10 3 3 7 6 . 2 2 8 Fast Attach 41 | 6 1 1 5 4 6 5 1 3 4 1 4 Attach 22 | . . 2 1 1 1 1 2 1 1 2 10 Detach 13 | . . . . 2 2 . . 2 1 1 5 Swap 42 | . 4 . 3 6 7 1 6 6 2 1 6 Drop 56 | . 1 . 11 4 7 8 6 . 4 1 14 Fire 178 | . 4 22 12 27 . 3 1 7 16 6 80 Melee 65 | . . . . . 10 7 16 11 4 2 15 Ram . | . . . . . . . . . . . . Kick . | . . . . . . . . . . . . Crush . | . . . . . . . . . . . . Escape Stasis 8 | . . . . . . . 8 . . . . Rewire . | . . . . . . . . . . . . Trap . | . . . . . . . . . . . . Miscellaneous 1 | . . . . . . . . 1 . . . Route ------- -11/Scrapyard -10/Materials (discovered 2 exits: *Min x2) -10/Mines (discovered 2 exits: *Mat x2) -9/Materials -9/Mines (discovered 2 exits: *Mat / [*Exi]) -8/Materials (discovered 2 exits: *Fac x2) -7/Factory (discovered 4 exits: *Fac x4) -6/Factory (discovered 3 exits: *Fac / *Low x2) -5/Factory (discovered 2 exits: *Fac x2) -4/Factory (discovered 3 exits: *Res / [*Upp] / [Ext]) -3/Research (discovered 3 exits: *Res x3) -2/Research (discovered 1 exit: *Tes) History --------- Turn | Location | Event 24 | -11/Scrapyard | Discovered new exit (range 15) 54 | -11/Scrapyard | Entered Materials 124 | -10/Materials | Identified exit to Mines 300 | -10/Materials | Build established: Mutant 350 | -10/Materials | Entered Mines 538 | -10/Mines | Discovered new exit (range 11) 539 | -10/Mines | Learned location of Storage (-9) 679 | -10/Mines | Discovered new exit (range 12) 695 | -10/Mines | Assembled infested the area 722 | -10/Mines | Entered Materials 722 | -9/Materials | Accompanied by 2 allies 722 | -9/Materials | Evolved 2 slots: Utility x2 727 | -9/Materials | Led the pair of lost Derelicts to an unsafe place 972 | -9/Materials | Discovered new exit (range 16) 1035 | -9/Materials | Entered Mines 1043 | -9/Mines | Build established: Hacker-Mutant 1061 | -9/Mines | Found a damaged Exp. Sensor Array with a note attached 1065 | -9/Mines | Found Prototype Device 1065 | -9/Mines | Identified Exp. Sensor Array 1206 | -9/Mines | Deemed a non-threat by the Exiles lab entrance 1207 | -9/Mines | Discovered new exit (range 5) 1475 | -9/Mines | A weapon hastily lodged in a ceiling crevice suddenly fell to the ground 1498 | -9/Mines | Discovered new exit (range 13) 1530 | -9/Mines | Entered Materials 1530 | -8/Materials | Evolved 2 slots: Utility x2 1702 | -8/Materials | Repaired Exp. Sensor Array 1892 | -8/Materials | Build established: Mutant 1928 | -8/Materials | Discovered new exit (range 9) 2050 | -8/Materials | Discovered new exit (range 10) 2065 | -8/Materials | Entered Factory 2065 | -7/Factory | Evolved 2 slots: Utility x2 2183 | -7/Factory | Repaired Exp. Sensor Array 2243 | -7/Factory | Repaired Arm. Wheel 2304 | -7/Factory | Fabricated Chainsword (x2) 2475 | -7/Factory | Identified exit to Factory 2489 | -7/Factory | Build established: Hacker-Assassin 3034 | -7/Factory | Central database locked down 3172 | -7/Factory | Entered another Factory area 3172 | -6/Factory | Evolved 2 slots: Utility x2 3250 | -6/Factory | Identified exit to Lower Caves 3815 | -6/Factory | Discovered new exit (range 15) 3975 | -6/Factory | Entered another Factory area 3975 | -5/Factory | Evolved 2 slots: Utility x2 4129 | -5/Factory | Found Prototype Processor 4129 | -5/Factory | Identified Exp. Terrain Scan Processor 4144 | -5/Factory | Discovered new exit (range 16) 4520 | -5/Factory | Discovered new exit (range 12) 4569 | -5/Factory | Entered another Factory area 4569 | -4/Factory | Evolved 2 slots: Utility x2 4591 | -4/Factory | Found Quantum Capacitor 4751 | -4/Factory | Discovered new exit (range 10) 4763 | -4/Factory | Discovered new exit (range 20) 4813 | -4/Factory | Discovered new exit (range 13) 5088 | -4/Factory | Identified exit to Research 5088 | -4/Factory | Entered Research 5088 | -3/Research | Evolved 2 slots: Utility x2 5319 | -3/Research | Identified exit to Research 5756 | -3/Research | Entered another Research area 5756 | -2/Research | Evolved 2 slots: Utility x2 5895 | -2/Research | Discovered new exit (range 14) 5956 | -2/Research | Identified exit to Testing 6635 | -2/Research | Destroyed 7 combat bots 6652 | -2/Research | Lost 6 parts (3u3w) 6675 | -2/Research | Self-destructed Last Messages --------------- 06659_ Penetrated by Slug. 06659_ Adv. Heavy Siege Treads destroyed. 06660_ Imp. Utility Shielding destroyed. 06660_ K-01 Serf collects debris. 06661_ Penetrated by Slug. 06663_ U-05 Engineer lays Concrete. 06663_ Acquired 20 matter. 06663_ K-01 Serf collects debris. 06664_ Particle Reactor destroyed. 06664_ Penetrated by Slug. 06665_ K-01 Serf collects debris. 06666_ Penetrated by Slug. 06667_ System Shield destroyed. 06667_ K-01 Serf collects debris. 06669_ Slug penetrates G-73 Enforcer. 06669_ Penetrated by Slug. 06670_ Adv. Heat Sink destroyed. 06670_ K-01 Serf collects debris. 06674_ Slug penetrates Wall. [Achievement: Just Browsing] Map ----- +----------------------------------------------------+ | ?????????????????????????????????????????????????? | | ?????????????????????????????????????????????????? | | ?????????????????????????????????????????????????? | | ?????????????????????????????????????????????????? | | ?????????????????????????????????????????????????? | | ?????????????????????????????????????????????????? | | ?????????????????????????????????????????????????? | | ?????????????????????????????????????????????????? | | ?????????????????????????????????????????????????? | | ?????????????????????????????????????????????????? | | ??????????????????????????? ???????????????????? | | ??????????????????????????? #?????????????????? | | ??????????????????????????? #?????????????????? | | ??????????????????????????? #?????????????????? | | ??????????????????????????? #?????????????????? | | ??????????????????????????? #?????????????????? | | ??????????????????????????? #?????????????????? | | ??????????????????????????# +?????????????????? | | ?????????????????????????? #?????????????????? | | ?????????????????????????? #?????????????????? | | ?????????????????????????? #?????????????????? | | ?????????????????????????? #?????????????????? | | ??????????????????????????#hh g#?????????????????? | | ????????????????###########gk #?????????????????? | | ????????????????# g #?????????????????? | | ????????????????# @# #?????????????????? | | ????????????????# # #?????????????????? | | ????????????????# """ # #?????????????????? | | ????????????????# """ # #?????????????????? | | ????????????????# """ #= #?????????????????? | | ????????????? ???? # ! #?????????????????? | | ???????????? ?? #? #! #?????????????????? | | ???????????????##?######### #?#???????????????? | | ?????????#???##?########### ##?#??????????????? | | ??????????+?? ?# # #? ???????????????? | | ?????? ?? # ?? # ] # # ? ?????????????? | | ?????? ? ?" # # # ? ??????????????? | | ??????? + "" # # # #???????? | | ?????##?### "" # """ + + * #???????? | | ????####### S # """ # # #???????? | | ????####### "" # """ # # ???????????? | | ????####### "" # # #? ?????????????? | | ??### # "" # # #?#######?????????? | | ??? # ####/##### ##?###??##????????? | | ? # #### ##### ###?##?#??????????? | | ? + #### ##### #####???#?????????? | | """ # #### ##### ######## ????????? | | "Y" ########### ##### ######## ?????????? | | #### # ##### ########? ????????? | | ######/##### # ? ???????? | +----------------------------------------------------+ Best States ------------- Heat Dissipation 87 Energy Generation 23 Energy Capacity 340 Matter Stores 300 Matter Capacity 300 Sight Range 22 Robot Scan Range 30 Terrain Scan Range 20 Terrain Scan Density 1210 ECM Strength 3 Jamming Range 12 Armor Coverage 1650 Utility Shielding 66 Evasion (%) 42 Armor Integrity Analysis 50 Recoil Reduction 2 Particle Charging 20 Offensive Hacking 34 Defensive Hacking 10 Item Schematics ----------------- Airjet | -8/Materials | Scanalyzed Exp. Sensor Array | -8/Materials | Scanalyzed Rocket Launcher | -8/Materials | Scanalyzed Arm. Huge Wheel | -7/Factory | Hacked Hvy. Plasma Cannon | -6/Factory | Hacked Plasma Cannon | -6/Factory | Scanalyzed Hrd. Medium Armor Plating | -6/Factory | Scanalyzed Proton Missile Launcher | -6/Factory | Scanalyzed Enh. Nova Cannon | -3/Research | Hacked Robot Schematics ------------------ W-25 Informer | -7/Factory | Hacked Fabricated ------------ Chainsword | x2 | -7/Factory | Preloaded Alien Tech Used ----------------- None Achievements -------------- I Spy Just Browsing Challenges ------------ None Game ------ Seed CatalystNovaFlamer Manual? 0 Play Time 02:01:43 Cumulative 15.2 hours Start 2019.10.27 @ 17:39:35 End 2019.10.28 @ 10:17:09 Sessions 8 Manual Loads 0 Difficulty Rogue Special Mode None Game No. 12 Rogue 12 Adventurer 0 Explorer 0 Win Type - Total 2 Types 2/0/0/0/0/0/0 Lore% 28 Gallery% 25 Achievement% 26 Wizard Run 0 Options --------- ASCII 0 Keyboard 0 Movement Vi Keybinds 0 Fullscreen 0 Font 14/SmallcapsGlow Map View 72x52 Tactical HUD 1 Map Filters NONE Filters NONE Steam 0 RUN: a3036653-a5bd-40db-b9d3-3cf58714363d